{"text_format":"1","workbook":"xlsx","n_sheets":1,"sheets":["1кв. 2015"],"not_rendered":{"charts":0,"images":0,"macros":0,"external_links":0,"defined_names":0,"comments":0,"pivot_tables":0},"unopened":[],"bounds":{"document_bytes":16777216,"sheet_cells":100000,"rows_first":2000,"rows_last":500,"rows_between":2000,"halvings":0,"cell_chars":16384,"cell_head_chars":4096},"cells_cut":0,"cells_raw":0,"read":"whole","date_system":"1900"}

{"sheet":"1кв. 2015","index":0,"n_rows":25,"n_cols":11,"rows_kept":25,"cut":false,"hidden":false,"merged":[[27,1,27,10],[29,1,29,12],[45,1,45,12],[7,8,8,8],[10,0,10,2],[7,1,8,1],[7,2,8,2],[7,3,8,3],[0,8,0,10],[2,8,2,10],[4,0,6,10],[7,9,7,10],[7,7,8,7],[3,7,3,10],[7,4,8,4],[7,5,7,6],[7,0,8,0]]}
[null,null,null,null,null,null,null,null,"Приложение №8"]
[null,null,null,null,null,null,null,"к постановлению администрации ЗАТО г.Радужный"]
[null,null,null,null,null,null,null,null,"от  29.07.2015г. № 1198"]
[null,null,null,null,null,null,null," "]
["ИСПОЛНЕНИЕ адресной инвестиционной программы развития ЗАТО г.Радужный за 2 квартал 2015 года "]
[]
[]
["№№\nп/п","Наименование     мероприятий","Наименование муниципальной программы,  в мероприятиях которой утверждено мероприятия","Код бюджетной классификации","Объём \nфинанси-\nрования\nруб.","Собственные доходы",null,"Внебюджетные источники","Исполнение  руб.","Собственные доходы"]
[null,null,null,null,null,"Субсидии и иные межбюджетные трансферты ","Другие собственные  доходы",null,null,"Субсидии и иные межбюджетные трансферты ","Другие собственные  доходы"]
[1,2,3,4,5,6,8,9,10,11,12]
["1.Программная часть программы"]
["1.1.","Проектно-изыскательские работы  на строительство здания среднеэтажного  многоквартирного  жилого дома № 2 в 7/3 квартале г. Радужного Владимирской области","Подпрограмма \"Социальное жилье ЗАТО г.Радужный\"муниципальной программы \"Обеспечение доступным и комфортным жильем населения ЗАТО г. Радужный Владимирской области\"","733-0501-0754204-414",{"$f":"F12+G12+H12","v":4000000},null,4000000,null,0,0,0]
["1.2.","Строительство многоквартирного жилого дома в 3 квартале  г. Радужного  (выполнение сезонных работ по благоустройству)","Подпрограмма \"Социальное жилье ЗАТО г.Радужный\"муниципальной программы \"Обеспечение доступным и комфортным жильем населения ЗАТО г. Радужный Владимирской области\"","733-0501-0754201-414",2510000,null,2510000,null,40171.01,0,40171.01]
["1.3.","Приобретение  жилья  на первичном рынке ","Подпрограмма \"Социальное жилье ЗАТО г.Радужный\"муниципальной программы \"Обеспечение доступным и комфортным жильем населения ЗАТО г. Радужный Владимирской области\"","733-0501-0754202-414\n\n733-0501-0757009-414",{"$f":"F14+G14","v":26740000},22522000,4218000,null,{"$f":"J14+K14","v":0},0,{"$f":"L14+M14","v":0}]
["1.4.","Приобретение  жилья  на вторичном рынке","Подпрограмма \"Социальное жилье ЗАТО г.Радужный\"муниципальной программы \"Обеспечение доступным и комфортным жильем населения ЗАТО г. Радужный Владимирской области\"","702-0501-0754203-414",{"$f":"F15+G15+H15","v":1450000},null,1450000,null,1450000,0,1450000]
["1.5.","Проектно-изыскательские работы на строительство трансформаторной подстанции ТП 15-7 в 7/3 квартале;  строительство сетей электроснабжения в 7/1 квартале (технический план)  (Развитие малоэтажного жилищного строительства на территории ЗАТО г.Радужный)","Подпрограмма «Стимулирование развития жилищного строительства ЗАТО г. Радужный»  муниципальной программы  \"Обеспечение доступным и комфортным жильем населения ЗАТО г. Радужный Владимирской области\"","733-0502-0724202-414",500000,null,500000,null,104880.02,0,104880.02]
["1.6.","Строительство объекта\"Наружные сети электроснабжения в квартале 7/1 ЗАТО г. Радужный Владимирской области (ТП №15-23 с подходящими и отходящими сетями\") (Развитие малоэтажного жилищного строительства на территории ЗАТО г. Радужный)","Подпрограмма «Стимулирование развития жилищного строительства ЗАТО г. Радужный»  муниципальной программы  \"Обеспечение доступным и комфортным жильем населения ЗАТО г. Радужный Владимирской области\"","733-0502-0724202-414-м/б\n\n733-0502-0727010-414-обл./б.",11075000,8075000,3000000,null,{"$f":"J17+K17","v":0},0,{"$f":"L17+M17","v":0}]
["1.7.","ПИР и экспертиза проекта на газоснабжение 7/1 квартала, ПИР на водопровод и канализацию 7/1 квартала (Обеспечение инженерной и транспортной инфраструктурой земельных участков, предоставляемых (предоставленных) для индивидуального жилищного строительства семьям, имеющим троих и более детей \nв возрасте до18 лет, в ЗАТО г. Радужный )","Подпрограмма «Стимулирование развития жилищного строительства ЗАТО г. Радужный»  муниципальной программы  \"Обеспечение доступным и комфортным жильем населения ЗАТО г. Радужный Владимирской области\"","733-0502-0724203-414",1380000,null,1380000,null,752399.38,0,752399.38]
["1.8.","Строительство инженерной инфраструктуры в 9 квартале (сети  водоснабжения, канализации , теплоснабжения и др.)    (Комплексное освоение и развитие территории ЗАТО г. Радужный в  целях жилищного строительства)","Подпрограмма «Стимулирование развития жилищного строительства ЗАТО г. Радужный»  муниципальной программы  \"Обеспечение доступным и комфортным жильем населения ЗАТО г. Радужный Владимирской области\"","733-0502-0724201-414",11000000,null,11000000,null,{"$f":"J19+K19","v":298870},0,298870]
["1.9.","Строительство транформаторной подстанции в 17 квартале  (технический план)","Муниципальная программа «Энергосбережение и повышение  надежности  энергоснабжения в топливно-энергетическом  комплексе ЗАТО г. Радужный на 2014-2016 г. г »","733-0502-0802209-414",30000,null,30000,null,{"$f":"J20+K20","v":17407.150000000001},0,17407.150000000001]
["1.10","Строительство системы обеззараживания сточных вод на очистных сооружениях северной группы второй очереди на территории ЗАТО г. Радужный, в том числе разработка проекта системы обеззараживания сточных вод на очистных сооружениях северной группы второй очереди на территории ЗАТО г. Радужный Владимирской областти","Муниципальная   программа «Обеспечение населения ЗАТО г.Радужный Владимирской области питьевой водой на  2014-2016г.г.»","733-0502-1102200-414",2734820,null,2734820,null,189999.37,0,189999.37]
["1.11","Строительство полигона твердых бытовых отходов (рекультивация  существующего полигона)","Муниципальная  программа \"Охрана окружающей среды ЗАТО г. Радужный на 2014-2016 годы\", подпрограмма «Отходы ЗАТО г. Радужный на 2014-2016 годы»","733-0503-1022203-414",7290000,null,7290000,null,{"$f":"J22+K22","v":0},0,0]
["1.12","Бюджетные инвестиции бюджета ЗАТО г.Радужный  в экономическое развитие  муниципального унитарного предприятия \"Автотранспортные перевозки ЗАТО г.Радужный Владимирской области\" (для обновления автобусного парка- автобусов большой вместимости)","Муниципальная программа \"Развитие пассажирских перевозок на территории ЗАТО г.Радужный на 2014-2016 г.г.\"","767-0408-1202200-452",900000,null,900000,null,900000,0,900000]
[null,"Всего по программной части",null,null,{"$f":"SUM(E12:E23)","v":69609820},{"$f":"SUM(F12:F23)","v":30597000},{"$f":"SUM(G12:G23)","v":39012820},null,{"$f":"SUM(I12:I23)","v":3753726.93},0,{"$f":"SUM(K12:K23)","v":3753726.93}]
[null,"ВСЕГО по 2015 году",null,null,{"$f":"E24","v":69609820},{"$f":"F24","v":30597000},{"$f":"G24","v":39012820},null,{"$f":"I24","v":3753726.93},0,{"$f":"K24","v":3753726.93}]